Workbook

Sheet 总表
A1: 全区棚户区改造债券资金使用进展情况表
A3: 截至2019年11月30日 | Q3: 单位：万元
A4: 地市 | B4: 债券资金覆盖棚户区改造套数 | G4: 债券资金总额 | K4: 第一期债券资金 | O4: 第二期债券资金
C5: 其中2018年及以前任务套数 | D5: 2019年国家任务 | E5: 2019年储备任务 | F5: 2019年新增任务 | G5: 发行总额度 | H5: 资金使用额度 | I5: 使用率 | J5: 排 名 | K5: 发行额度 | L5: 资金使用额度 | M5: 使用率 | N5: 排 名 | O5: 发行额度 | P5: 资金使用额度 | Q5: 使用率
A6: 合计 | B6: =SUM(B7:B19) -> 189300 | C6: 74741 | D6: 74285 | E6: 8539 | F6: 31735 | G6: 2000000 | H6: 1889346 | I6: =H6/G6 -> 94.47% | K6: =SUM(K7:K19) -> 500000 | L6: =SUM(L7:L19) -> 487520 | M6: =L6/K6 -> 97.50% | O6: =SUM(O7:O19) -> 1500000 | P6: =SUM(P7:P19) -> 1401826 | Q6: =P6/O6 -> 93.46%
A7: 南宁市 | B7: =C7+D7+E7+F7 -> 18202 | C7: 5442 | D7: 4381 | E7: 429 | F7: 7950 | G7: 282000 | H7: =L7+P7 -> 279034 | I7: 98.95% | K7: 19000 | L7: 19000 | M7: =L7/K7 -> 100.00% | O7: 263000 | P7: 260034 | Q7: =P7/O7 -> 98.87%
A8: 柳州市 | B8: =C8+D8+E8+F8 -> 6455 | C8: 3614 | D8: 1556 | E8: 0 | F8: 1285 | G8: =K8+O8 -> 59500 | H8: 59500 | I8: 100.00% | J8: 新增用完 | K8: 27500 | L8: 27500 | M8: =L8/K8 -> 100.00% | O8: 32000 | P8: 32000 | Q8: =P8/O8 -> 100.00%
A9: 桂林市 | B9: 9559 | C9: 4598 | D9: 2127 | E9: 0 | F9: 2834 | G9: =K9+O9 -> 129000 | H9: 126700 | I9: 98.22% | K9: 12600 | L9: 12600 | M9: 100.00% | O9: 116400 | P9: 114100 | Q9: 98.02%
A10: 梧州市 | B10: 17352 | C10: 9101 | D10: 2694 | E10: 303 | F10: 5254 | G10: 228000 | H10: 218755 | I10: 95.95% | K10: 100000 | L10: 100000 | M10: 100.00% | O10: 128000 | P10: 118755 | Q10: 92.78%
A11: 防城港市 | B11: 870 | C11: 870 | D11: 0 | E11: 0 | F11: 0 | G11: =K11+O11 -> 11200 | H11: 11200 | I11: 100.00% | K11: 0 | L11: 0 | M11: 0.00% | N11: - | O11: 11200 | P11: 11200 | Q11: 100.00%
A12: 钦州市 | B12: 8422 | C12: 2540 | D12: 3796 | E12: 1819 | F12: 267 | G12: =K12+O12 -> 92000 | H12: 92000 | I12: 100.00% | J12: 新增用完 | K12: 0 | L12: 0 | M12: 0.00% | N12: - | O12: 92000 | P12: 92000 | Q12: 100.00%
A13: 玉林市 | B13: 18878 | C13: 8719 | D13: 6587 | E13: 0 | F13: 3572 | G13: =K13+O13 -> 182400 | H13: 140275 | I13: 76.90% | K13: 65400 | L13: 60859 | M13: 93.06% | O13: 117000 | P13: 79416 | Q13: 67.88%
A14: 贵港市 | B14: 17582 | C14: 13507 | D14: 2223 | E14: 0 | F14: 1852 | G14: =K14+O14 -> 99000 | H14: 93073 | I14: 94.01% | K14: 13000 | L14: 10938 | M14: 84.14% | O14: 86000 | P14: 82135 | Q14: 95.51%
A15: 百色市 | B15: 26910 | C15: 1419 | D15: 25099 | E15: 0 | F15: 392 | G15: 319300 | H15: 319300 | I15: 100.00% | K15: 87600 | L15: 87600 | M15: 100.00% | O15: 231700 | P15: 231700 | Q15: 100.00%
A16: 贺州市 | B16: 26398 | C16: 5776 | D16: 9646 | E16: 3642 | F16: 7334 | G16: 178600 | H16: 178600 | I16: 100.00% | K16: 18000 | L16: 18000 | M16: 100.00% | O16: 160600 | P16: 160600 | Q16: 100.00%
A17: 河池市 | B17: 10270 | C17: 7828 | D17: 1527 | E17: 0 | F17: 915 | G17: 81700 | H17: 53294 | I17: 65.23% | K17: 29500 | L17: 29500 | M17: 100.00% | N17: 新增用完 | O17: 52200 | P17: 23794 | Q17: 45.58%
A18: 来宾市 | B18: 9403 | C18: 4805 | D18: 4598 | E18: 0 | F18: 0 | G18: =K18+O18 -> 85900 | H18: 66216 | I18: 77.08% | K18: 27000 | L18: 21123 | M18: 78.23% | O18: 58900 | P18: 45092 | Q18: 76.56%
A19: 崇左市 | B19: 18999 | C19: 6522 | D19: 10051 | E19: 2346 | F19: 80 | G19: 251400 | H19: 251400 | I19: 100.00% | J19: 新增用完 | K19: 100400 | L19: 100400 | M19: 100.00% | O19: 151000 | P19: 151000 | Q19: 100.00%

Sheet 明细表
A1: 2019年棚户区改造债券资金使用进度表 | P1: 第一批 | R1: 财政部门
A2: 序号 | B2: 行政区域 | C2: 项目名称 | D2: 2018年国家及以前年度建设任务 | E2: 2019年国家任务 | F2: 2019年储备任务 | G2: 2019年新增任务 | H2: 截至2019年11月底使用金额（万元） | I2: 发行债券期数 | J2: 此次发行债券金额（万元） | K2: 目前债券资金拨付到哪个层级 | L2: 项目业主（建议加此字段，因为从业务管理角度出发，可以对比项目业主和监管账户是否一致） | M2: 监管账户名称（必要字段） | N2: 债券资金支付账户开户行 | O2: 债券资金支付账号 | P2: 第二批 | R2: 住建部门（或棚改部门）
D3: =D4+D16+D27+D41+D56+D61+D70+D83+D127+D150+D168+D191+D179 -> 76645 | E3: =E4+E16+E27+E41+E56+E61+E70+E83+E127+E150+E168+E191+E179 -> 74285 | F3: 8539 | G3: 31735 | H3: 1889346 | J3: =J4+J16+J27+J41+J56+J61+J70+J83+J127+J150+J168+J191+J179 -> 2,000,000.00 | R3: 平台公司
B4: 南宁市小计 | D4: =SUM(D5:D15) -> 5442 | E4: =SUM(E5:E15) -> 4381 | F4: 429 | G4: 7950 | H4: 279034 | J4: =SUM(J5:J15) -> 282,000.00 | R4: 其他
A5: 1 | B5: 南宁市本级 | C5: 南宁市2018-2020年棚户区改造项目（第三批）—青秀区（青山凤岭、三屋、三岸）园艺场农民安置项目 | D5: 3912 | E5: 0 | F5: 0 | G5: 0 | H5: 12000 | I5: 第一批 | J5: 12,000.00 | K5: 其他 | L5: 南宁青秀山风景名胜旅游区管理委员会（工行南宁星湖支行）2102103129300077715 | M5: 南宁市青秀区人民政府 | N5: 南宁市青秀区人民政府（建行长湖路支行）（账户由城区征拆办管理） | O5: 45050160477309999666
A6: 2 | B6: 南宁市本级 | C6: 南宁市2018-2020年棚户区改造项目（第二批） | D6: 633 | E6: 1403 | F6: 0 | G6: 0 | H6: 40000 | I6: 第二批 | J6: 40,000.00 | K6: 住建部门（或棚改部门） | L6: 南宁市耀泰房地产开发有限公司 广西唐沁同光投资有限公司 广西锦鑫佰业房地产开发有限公司 | N6: 南宁市良庆区财政局（建行南宁大沙田支行） | O6: 4500 1604 9570 5070 0234 1188
A7: 3 | B7: 南宁市本级 | C7: 南宁市2018-2020年棚户区改造项目（第三批）-邕宁片区工程 | H7: 80000 | I7: 第二批 | J7: 80,000.00 | K7: 其他 | L7: 南宁市邕宁区土地储备分中心（中信银行南宁广园路支行）8113001012600119931 | M7: 南宁市邕宁区土地储备分中心 | N7: （南宁市邕宁区土地储备分中心）中信银行南宁广园路支行 | O7: 8113001012600119931
D8: 0 | E8: 1810 | F8: 0 | G8: 7343 | L8: （邕宁区棚改债券资金专户）南宁市邕宁区农村信用合作联社营业部187312010101430885-100007 | M8: 邕宁区棚改债券资金专户 | N8: （邕宁区棚改债券资金专户）南宁市邕宁区农村信用合作联社营业部 | O8: 187312010101430885-100007
A9: 4 | B9: 南宁市本级 | C9: 南宁市2018-2020年棚户区改造项目（第三批）-良庆片区改造项目 | D9: 0 | E9: 370 | F9: 429 | G9: 0 | H9: 80000 | I9: 第二批 | J9: 80,000.00 | K9: 财政部门 | L9: 广西盛世联邦房地产开发有限公司 广西唐勋投资有限公司 南宁市龙光铭誉房地产开发有公司 广西阳唐茂房地产有限公司 广西唐勋投资有限公司 | N9: 南宁市良庆区财政局（建行南宁大沙田支行） | O9: 4500 1604 9570 5070 0234 1188
A10: 5 | B10: 南宁市本级 | C10: 南宁市2018-2020年棚户区改造项目（第四批） | D10: 0 | E10: 93 | F10: 0 | G10: 607 | H10: 10000 | I10: 第二批 | J10: 10,000.00 | K10: 住建部门（或棚改部门） | L10: （南宁市兴宁区房屋征收补偿和征地拆迁办公室）广西北部湾银行南宁市兴东支行800100002899999 | M10: 南宁市兴宁区房屋征收补偿和征地拆迁办公室 | N10: （南宁市兴宁区房屋征收补偿和征地拆迁办公室）广西北部湾银行南宁市兴东支行 | O10: 800100002899999
A11: 6 | B11: 南宁市本级 | C11: 南宁市2018-2020年棚户区改造项目（第五批） | D11: 0 | E11: 705 | F11: 0 | G11: 0 | H11: 50000 | I11: 第二批 | J11: 50,000.00 | K11: 住建部门（或棚改部门） | L11: （南宁市江南区人民政府办公室）光大银行南宁分行营业部78890188000380869 | N11: （南宁市江南区人民政府办公室）光大银行南宁分行营业部 | O11: 78890188000380869
A12: 7 | B12: 西乡塘区 | C12: 南宁市西乡塘区北湖北路4号片区旧城区改建项目 | D12: 443 | H12: 5000 | I12: 第一批 | J12: 5,000.00 | K12: 其他 | L12: (南宁市西乡塘区人民政府）交通银行友爱支行451060400018170643385 | M12: 南宁市西乡塘区人民政府 | N12: (南宁市西乡塘区人民政府）交通银行友爱支行 | O12: 451060400018170643385
A13: 8 | B13: 武鸣县 | C13: 武鸣县平陆片区改造项目 | H13: 2000 | I13: 第一批 | J13: 2,000.00 | K13: 其他 | L13: （广西武鸣栲胶厂）国家开发银行广西壮族自治区分行45101560048730210000 | M13: 广西武鸣栲胶厂 | N13: （广西武鸣栲胶厂）国家开发银行广西壮族自治区分行 | O13: 45101560048730210000
D14: 454 | E14: 0 | F14: 0 | G14: 0 | L14: （广西武鸣栲胶厂）中国建设银行股份有限公司武鸣城东支行45050159725700000238 | M14: 广西武鸣栲胶厂 | N14: （广西武鸣栲胶厂）中国建设银行股份有限公司武鸣城东支行 | O14: 45050159725700000238
A15: 9 | B15: 武鸣区 | C15: 武鸣县平陆片区改造项目 | H15: 34 | I15: 第二批 | J15: 3,000.00 | K15: 财政部门 | L15: （广西武鸣栲胶厂）中国建设银行股份有限公司武鸣城东支行45050159725700000238 | M15: 广西武鸣栲胶厂 | N15: （广西武鸣栲胶厂）中国建设银行股份有限公司武鸣城东支行 | O15: 45050159725700000238
B16: 柳州市小计 | D16: =SUM(D17:D26) -> 3614 | E16: =SUM(E17:E26) -> 1556 | F16: =SUM(F17:F26) -> 0 | G16: =SUM(G17:G26) -> 1285 | H16: =SUM(H17:H26) -> 59500 | J16: =SUM(J17:J26) -> 59,500.00
A17: 10 | B17: 柳州市本级 | C17: 柳东新区洛埠村棚户区改造（蚂蝗屯居住安置）项目 | D17: 243 | E17: 131 | H17: 3000 | I17: 第一批 | J17: 3,000.00 | K17: 平台公司 | L17: 柳州东城安居置业开发有限公司 | M17: 柳州东城安居置业开发有限公司 | N17: 光大银行 | O17: 7903 0188 0000 6183 8
A18: 11 | B18: 柳州市柳东新区 | C18: 柳东新区洛埠村棚户区改造（蚂蟥屯居住安置）项目 | H18: 4000 | I18: 第二批 | J18: 4,000.00 | K18: 平台公司 | L18: 柳州东城安居置业开发有限公司 | M18: 柳州东城安居置业开发有限公司 | N18: 柳州银行 | O18: 7031 1500 0000 0000 0051
A19: 12 | B19: 柳江区 | C19: 柳州市柳江区城中村棚户区改造（一期）项目 | D19: 609 | H19: 10000 | I19: 第二批 | J19: 10,000.00 | K19: 平台公司 | L19: 柳江区住房和城乡建设局 | M19: 柳州市柳江区鸿源资产经营有限责任公司 | N19: 交通银行柳州南站支行 | O19: 4520 6040 4018 0100 58633
M20: 柳州市柳江区鸿源资产经营有限责任公司 | N20: 广西柳江柳银村镇银行总行营业部 | O20: 8000 1500 0000 0000 3053
M21: 柳州市柳江区城市建设投资有限公司 | N21: 广西柳江柳银村镇银行总行营业部 | O21: 8000 1201 1010 3000 00018
A22: 13 | B22: 鹿寨县 | C22: 鹿寨县鹿寨镇片区棚户区改造 | D22: 2000 | E22: 120 | H22: 7500 | I22: 第一批 | J22: 7,500.00 | K22: 平台公司 | L22: 鹿寨县房地产开发有限责任公司 | M22: 鹿寨县房地产开发有限责任公司 | N22: 柳州银行鹿寨支行 鹿寨农村商业银行城南分理处 农行鹿寨县支行建中路分理处 工行鹿寨城南新区支行 | O22: 70508500000000002072 205712010105669723 20138601040006678 2105474319300015095
A23: 14 | B23: 柳城县 | C23: 柳城县大埔镇正殿村棚户区改造及配套基础设施建设项目 | E23: 435 | G23: 37 | H23: 8000 | I23: 第二批 | J23: 8,000.00 | K23: 平台公司 | L23: 柳城县政源实业开发有限责任公司 | M23: 柳城县政源实业开发有限责任公司 | N23: 中国农业银股份有限公司柳城县白阳支行 | O23: 20-135 2010 4000 5888
A24: 15 | B24: 柳城县 | C24: 柳城县靖西村棚户区改造及配套工程项目 | D24: 202 | E24: 300 | G24: 300 | H24: 10000 | I24: 第二批 | J24: 10,000.00 | K24: 平台公司 | L24: 柳城县政兴市政投资有限责任公司 | M24: 柳城县政兴市政投资有限责任公司 | N24: 中国农业银股份有限公司柳城县白阳支行 | O24: 20-135 2010 4000 5888
A25: 16 | B25: 融安县 | C25: 融安县长安镇北府寨片区棚户区改造工程 | E25: 570 | G25: 948 | H25: 5000 | I25: 第一批 | J25: 5,000.00 | K25: 其他 | L25: 融安县兴华交通投资开发有限责任公司 | M25: 融安县财政局 | N25: 中国农业银行股份有限公司融安大巷分理处 | O25: 20152801040003227
A26: 17 | B26: 三江侗族自治县 | C26: 三江县2015-2017年城市棚户区（城中村）改造项目 | D26: 560 | H26: 12000 | I26: 第一批 | J26: 12,000.00 | K26: 平台公司 | L26: 三江侗族自治县三江电力有限责任公司 | M26: 三江侗族自治县三江电力有限责任公司 | N26: 农行三江县支行 | O26: 20155101040011644
B27: 桂林市小计 | D27: =SUM(D28:D40) -> 4598 | E27: =SUM(E28:E40) -> 2127 | F27: =SUM(F28:F40) -> 0 | G27: =SUM(G28:G40) -> 2834 | H27: =SUM(H28:H40) -> 126700 | J27: =SUM(J28:J40) -> 129,000.00
A28: 18 | B28: 桂林市本级 | C28: 桂林市叠彩区建干北路棚户区（城中村）改造项目 | E28: 310 | G28: 288 | H28: 15500 | I28: 第二批 | J28: 15,500.00 | K28: 住建部门 （或棚改部门） | L28: 桂林市叠彩基础建设开发有限公司 | M28: 桂林市叠彩区住房和城乡建设局 | N28: 桂林市叠彩区住房和城乡建设局 桂林银行城北支行 | O28: 660010002016900048
A29: 19 | B29: 兴安县 | C29: 兴安县棚户区改造项目 | D29: 1963 | H29: 25000 | I29: 第二批 | J29: 25,000.00 | K29: 其他 | L29: 1.兴安县鑫泰城市建设投资有限公司 2.兴安县信能投资有限责任公司 3.兴安县住房和城乡建设局 | M29: 兴安县财政局 | N29: 账户名称：兴安县房屋征收办公室 （广西兴安农村合作银行营业部） 兴安县鑫泰城市建设投资有限公司 （广西兴安农村合作银行城台路支行） 兴安县信能投资有限责任公司 （广西兴安农村合作银行营业部） 兴安县城市棚户区改造项目建设指挥部办公室 广西兴安民兴村镇银行湘江支行湖南省天宇工程建设有限公司 （中国建设银行祁阳支行） 兴安县住房和城乡建设局 中国建设银行股份有限公司兴安支行 | O29: 307512010171733718 307712010106934195 307512010136688801 666800085870100010 43001550071052500077 45001635609058003366
A30: 20 | B30: 永福县 | C30: 永福县十字街旧城区棚户区改造项目 | E30: 367 | G30: 182 | H30: 7200 | I30: 第二批 | J30: 7,200.00 | K30: 平台公司 | L30: 永福县经济建设投资有限公司 | M30: 招商银行南宁分行东葛路支行 | N30: 广西永福农村合作银行苏桥支行 | O30: 3470012040000170
A31: 21 | B31: 永福县 | C31: 永福县县城棚户区改造项目 | E31: 112 | G31: 1835 | H31: 17800 | I31: 第二批 | J31: 17,800.00 | K31: 平台公司 | L31: 永福县福兴城乡投资有限公司 | M31: 招商银行南宁分行东葛路支行 | N31: 中国农业银行永福支行 | O31: 20258101040014600
A32: 22 | B32: 龙胜县 | C32: 龙胜各族自治县盛园路棚户区改造（一期）项目 | E32: 66 | H32: 2500 | I32: 第二批 | J32: 2,500.00 | K32: 财政部门 | L32: 龙胜各族自治县兴胜城乡建设投资有限公司 | M32: 龙胜各族自治县兴胜城乡建设投资有限公司 | N32: 1.中国农业银行龙胜城关分理处 2.龙胜农村商业银行营业部 | O32: 1.20263401040003446 2.353512010110897720
A33: 23 | B33: 资源县 | C33: 资源县城中村棚户区改造项目（中峰镇、梅溪镇、瓜里乡片区） | D33: 537 | H33: 12600 | I33: 第一批 | J33: 12,600.00 | K33: 平台公司 | L33: 资源县住房和城乡建设局 | M33: 资源县财政局 | N33: 桂林银行资源支行 资源县农村商业银行营业部 | O33: 660013116597600010 355612010129379451
A34: 24 | B34: 资源县 | C34: 资源县资源镇城中村棚户区改造项目 | E34: 512 | G34: 80 | H34: 6400 | I34: 第二批 | J34: 6,400.00 | K34: 财政部门 | L34: 资源县住房和城乡建设局 | M34: 资源县财政局
A35: 28 | B35: 平乐县 | C35: 平乐县新安街片区棚户区项目 | D35: 663 | H35: 800 | I35: 第二批 | J35: 800.00 | K35: 财政部门 | L35: 平乐县昭州人居环境改善建设投资有限公司 | M35: 桂林银行平乐支行660013070768500020 | N35: 桂林银行平乐支行 | O35: 660013070768500020
A36: 29 | B36: 平乐县 | C36: 平乐县南洲新区棚户区改造项目 | D36: 447 | H36: 1000 | I36: 第二批 | J36: 1,000.00 | K36: 财政部门 | L36: 平乐县昭州人居环境改善建设投资有限公司 | M36: 桂林银行平乐支行660013070768500020 | N36: 桂林银行平乐支行 | O36: 660013070768500020
A37: 30 | B37: 平乐县 | C37: 平乐县马渭片区棚户区改造项目 | D37: 403 | H37: 3000 | I37: 第二批 | J37: 3,000.00 | K37: 财政部门 | L37: 平乐县昭州人居环境改善建设投资有限公司 | M37: 桂林银行平乐支行660013070768500020 | N37: 桂林银行平乐支行 | O37: 660013070768500020
A38: 31 | B38: 平乐县 | C38: 平乐县平乐镇老街片区棚户区改造项目 | D38: 380 | E38: 524 | G38: 285 | H38: 21200 | I38: 第二批 | J38: 21,200.00 | K38: 平台公司 | L38: 平乐县昭州人居环境改善建设投资有限公司 | M38: 桂林银行平乐支行660013070768500020 | N38: 桂林银行平乐支行 广西平乐农村合作银行 招商银行南宁东葛路支行 | O38: 660013070768500020 333612010136566166 771901812610306
A39: 32 | B39: 平乐县 | C39: 平乐县同乐新区棚户区改造项目 | D39: 205 | H39: 1000 | I39: 第二批 | J39: 1,000.00 | K39: 财政部门 | L39: 平乐县昭州人居环境改善建设投资有限公司 | M39: 桂林银行平乐支行660013070768500020 | N39: 桂林银行平乐支行 | O39: 660013070768500020
A40: 33 | B40: 恭城县 | C40: 恭城瑶族自治县2018-2020年棚户区（城中村）改造项目（一期）县城G、I地块安置房建设项目 | E40: 236 | G40: 164 | H40: 12700 | I40: 第二批 | J40: 15,000.00 | K40: 平台公司 | L40: 恭城县住建局 | M40: 恭城县财政局 | N40: 广西恭城农村商业银行 中国建设银行股份有限公司恭城支行 中国农业银行恭城支行营业室 | O40: 328612010126835003 45050110139700000021 20247101040008269
B41: 梧州市小计 | D41: =SUM(D42:D55) -> 9101 | E41: =SUM(E42:E55) -> 2694 | F41: 303 | G41: 5254 | H41: 218755 | J41: =SUM(J42:J55) -> 228000
A42: 34 | B42: 梧州市本级 | C42: 梧州市长洲岛棚户区改造（一期） | E42: 300 | H42: 20000 | I42: 第一批 | J42: 20,000.00 | K42: 平台公司 | L42: 梧州市城市建设投资开发有限公司 | M42: 梧州市财政局 | N42: 中国农业银行兴梧支行营业部 | O42: 20313101040007484
A43: 35 | B43: 梧州市本级 | C43: 梧州市富民片区棚户区改造项目 | D43: 1442 | H43: 20000 | I43: 第一批 | J43: 20,000.00 | K43: 其他 | L43: 梧州市东泰国有资产经营有限公司 | M43: 梧州市财政局 | N43: 梧州市区农村信用合作联社红旗信用社 | O43: 455412010109968276
A44: 36 | B44: 梧州市本级 | C44: 梧州市两龙片区棚户区（城中村）改造项目 | E44: 877 | G44: 123.00 | H44: 60000 | I44: 第一批 | J44: 60,000.00 | K44: 平台公司 | L44: 梧州市城市建设投资开发有限公司 | M44: 梧州市财政局 | N44: 中国银行梧州市京梧支行 农村信用社两广信用社 | O44: 614576304154 455012010112226879
A45: 37 | B45: 梧州市本级 | C45: 梧州市苍海片区棚户区（城中村）改造项目 | E45: 50 | G45: 699 | H45: 3655 | I45: 第二批 | J45: 10,000.00 | K45: 平台公司 | L45: 梧州市苍海新城工程开发有限公司 | M45: 梧州市苍海新区管理委员会 | N45: 农发行苍梧县支行 | O45: 20345042100100000186341
A46: 38 | B46: 梧州市本级 | C46: 梧州市河东旧城棚户区改造（一期）项目 | D46: 1577 | H46: 30000 | I46: 第二批 | J46: 30,000.00 | K46: 财政部门 | L46: 广西梧州金鼎实业有限公司 | M46: 梧州市财政局 | N46: 中行梧州河东支行、建行梧州分行中山支行 | O46: 615857496327、45001648653059000888
A47: 39 | B47: 梧州市本级 | C47: 梧州市南岸高旺片区棚户区改造项目 | G47: 2184 | H47: 42500 | I47: 第二批 | J47: 42,500.00 | K47: 财政部门 | L47: 广西梧州金鼎实业有限公司 | M47: 梧州市财政局 | N47: 工行梧州国龙支行、梧州市区农村信用合作联社营业部 | O47: 2104350519201010000、454612010101619265
A48: 40 | B48: 梧州市本级 | C48: 梧州市新兴一路片区棚户区改造项目 | D48: 1274 | H48: 2500 | I48: 第二批 | J48: 2,500.00 | K48: 财政部门 | L48: 梧州市东泰国有资产经营有限公司 | M48: 梧州市财政局 | N48: 柳州银行梧州分行 | O48: 605005000000000000553
A49: 41 | B49: 梧州市本级 | C49: 梧州市工厂一路片区棚户区改造项目 | D49: 2296 | H49: 5000 | I49: 第二批 | J49: 5,000.00 | K49: 财政部门 | L49: 梧州市东泰国有资产经营有限公司 | M49: 梧州市财政局 | N49: 农行丽港支行 | O49: 20313701040006400
A50: 42 | B50: 藤县 | C50: 藤县机关事务管理局大院棚户区（危旧房）改造项目（一期） | D50: 227 | G50: 149 | H50: 2000 | I50: 第二批 | J50: 2,000.00 | K50: 财政部门 | L50: 藤县龙源国有资产营运有限公司 | M50: 财政部门
A51: 43 | B51: 藤县 | C51: 梧州临港经济区（南北片）城中村棚户区改造项目 | E51: 515 | G51: 1551 | H51: 8000 | I51: 第二批 | J51: 8,000.00 | K51: 财政部门 | L51: 梧州临港开发建设有限公司 | M51: 财政部门
A52: 44 | B52: 藤县 | C52: 藤县藤州镇（田寮片区）棚户区改造工程项目 | D52: 577 | F52: 303 | H52: 5000 | I52: 第二批 | J52: 5,000.00 | K52: 财政部门 | L52: 藤县城市建设投资开发有限公司 | M52: 财政部门
A53: 45 | B53: 蒙山县 | C53: 蒙山县湄江沿岸棚户区改造工程项目 | D53: 1160 | H53: 7100 | I53: 第二批 | J53: 10,000.00 | K53: 平台公司 | L53: 蒙山县永安新城建设开发有限责任公司 | M53: 蒙山县财政局 | N53: 广西蒙山农村商业银行股份有限公司营业部 | O53: 423612010102002769
A54: 46 | B54: 岑溪市 | C54: 岑溪市工信系统厂矿企业棚户区集中安置新区项目 | D54: 548 | H54: 10000 | I54: 第二批 | J54: 10,000.00 | K54: 财政部门 | L54: 岑溪市城市建设开发有限公司
A55: 47 | B55: 岑溪市 | C55: 岑溪市城北探花城中村棚户区改造工程项目 | E55: 952 | G55: 548 | H55: 3000 | I55: 第二批 | J55: 3,000.00 | K55: 财政部门 | L55: 岑溪市农村投资有限公司 | M55: 岑溪市农村投资有限公司
B56: 防城港市小计 | D56: =SUM(D57:D60) -> 2774 | E56: =SUM(E57:E60) -> 0 | F56: =SUM(F57:F60) -> 0 | G56: =SUM(G57:G60) -> 0 | H56: =SUM(H57:H60) -> 11200 | J56: =SUM(J57:J60) -> 11,200.00
A57: 48 | B57: 防城港市本级 | C57: 防城港市高铁安置区棚户区改造项目-三沙小区建设项目 | D57: 500 | E57: 0 | F57: 0 | G57: 0 | H57: 4000 | I57: 第二批 | J57: 4,000.00 | K57: 财政部门 | N57: 中国建设银行防城港东兴大道支行 | O57: 45001659587058055555
A58: 49 | B58: 防城港市本级 | C58: 防城港市光坡安置区棚户区改造项目-光坡城东新区建设项目 | D58: 250 | E58: 0 | F58: 0 | G58: 0 | H58: 3000 | I58: 第二批 | J58: 3,000.00 | K58: 财政部门 | N58: 中国建设银行防城港东兴大道支行 | O58: 45001659587058055555
A59: 49+1 | B59: 防城港市本级 | C59: 防城港市港口区企沙棚户区改造项目 | D59: 1904 | E59: 0 | F59: 0 | G59: 0 | H59: 3000 | I59: 第二批 | J59: 3,000.00 | K59: 财政部门 | N59: 中国建设银行防城港东兴大道支行 | O59: 45001659587058055555
A60: 50 | B60: 防城港市本级 | C60: 防城区堤路园安置项目一期 | D60: 120 | E60: 0 | F60: 0 | G60: 0 | H60: 1200 | I60: 第二批 | J60: 1,200.00 | K60: 平台公司 | N60: 防城港市新城投资集团有限责任公司 | O60: 880512010102207188
B61: 钦州市小计 | D61: =SUM(D62:D69) -> 2540 | E61: =SUM(E62:E69) -> 3796 | F61: 1819 | G61: 267 | H61: 92000 | J61: =SUM(J62:J69) -> 92,000.00
A62: 51 | B62: 钦州市本级 | C62: 钦州港新城区城中村改造项目F期工程 | E62: 926 | H62: 6000 | I62: 第二批 | J62: 6,000.00 | K62: 财政部门
A63: 52 | B63: 钦州市本级 | C63: 钦州市东边塘安置小区项目 | D63: 233 | H63: 1000 | I63: 第二批 | J63: 1,000.00 | K63: 平台公司 | N63: 兴业银行钦州支行 | O63: 5540 1010 0100 0738 58
A64: 53 | B64: 钦州市本级 | C64: 钦州港新城区城中村改造项目E期工程 | D64: 422 | H64: 14000 | I64: 第二批 | J64: 14,000.00 | K64: 平台公司 | N64: 工行钦州港支行 农行钦州城中支行 | O64: 2115590119300019655 20733301040008209
A65: 54 | B65: 钦州市本级 | C65: 钦州市小江片区棚户区改造工程 | D65: 532 | H65: 10000 | I65: 第二批 | J65: 10,000.00 | K65: 平台公司 | N65: 农行钦州分行营业部 | O65: 20-732101040014897
A66: 55 | B66: 钦州市本级 | C66: 钦州市钦北区棚户区改造项目 | D66: 482 | E66: 440 | G66: 267 | H66: 25000 | I66: 第二批 | J66: 25,000.00 | K66: 财政部门
A67: 56 | B67: 灵山县 | C67: 灵山县鸟官塘城中村棚户区项目 | E67: 1000 | H67: 6000 | I67: 第二批 | J67: 6,000.00 | K67: 平台公司 | N67: 农发行灵山县支行 | O67: 20345072200100000171601
A68: 57 | B68: 灵山县 | C68: 灵山县马鞍山城中村棚户区项目 | E68: 820 | H68: 4000 | I68: 第二批 | J68: 4,000.00 | K68: 平台公司 | N68: 农发行灵山县支行 | O68: 20345072200100000166921
A69: 58 | B69: 浦北县 | C69: 浦北县棚户区改造项目（三期） | D69: 871 | E69: 610 | F69: 1819 | H69: 26000 | I69: 第二批 | J69: 26,000.00 | K69: 财政部门
B70: 贵港市小计 | D70: =SUM(D71:D82) -> 13507 | E70: =SUM(E71:E82) -> 2223 | F70: 0 | G70: 1852 | H70: 93073 | J70: =SUM(J71:J82) -> 99,000.00
A71: 59 | B71: 贵港市本级 | C71: 贵港市六八棚户区改造项目 | D71: 2530 | H71: 5938 | I71: 第一批 | J71: 8,000.00 | K71: 财政部门 | L71: 广西贵港市城市投资发展集团有限公司 | M71: 市国库 | N71: 建行贵港分行营业部 | O71: 4500 1753 7480 5968 8898
A72: 60 | B72: 贵港市本级 | C72: 贵港市园博园棚户区改造项目（第一安置区北区） | D72: 3162 | H72: 5000 | I72: 第一批 | J72: 5,000.00 | K72: 财政部门 | L72: 广西贵港市城市投资发展集团有限公司 | M72: 市国库 | N72: 广西北部湾银行贵港分行 | O72: 8001 0774 6200 018
A73: 61 | B73: 贵港市本级 | C73: 贵港市堤路园棚户区改造项目 | D73: 4540 | H73: 5000 | I73: 第二批 | J73: 5,000.00 | K73: 财政部门 | L73: 广西贵港市城市投资发展集团有限公司 | M73: 市国库 | N73: 建行贵港分行营业部 | O73: 4500 1753 7480 5070 9843
A74: 62 | B74: 贵港市本级 | C74: 贵港市港城棚户区改造项目 | D74: 2058 | H74: 9009 | I74: 第二批 | J74: 12,000.00 | K74: 财政部门 | L74: 广西贵港市城市投资发展集团有限公司 | M74: 市国库 | N74: 建行贵港分行营业部 | O74: 4500 1753 7480 5070 9829
A75: 63 | B75: 贵港市覃塘区 | C75: 贵港市覃塘区棚户区改造项目 | E75: 1000 | G75: 600 | H75: 34126 | I75: 第二批 | J75: 35,000.00 | K75: 财政部门 | L75: 贵港市荷美房地产开发有限公司 | M75: 国家金库覃塘区支库 | N75: 中国农业发展银行贵港分行 | O75: 20345089900100000382121
A76: 64 | B76: 平南县 | C76: 平南县大安镇棚户区（城中村）改造项目 | E76: 100 | G76: 200 | H76: 3500 | I76: 第二批 | J76: 3,500.00 | K76: 住建部门（或棚改部门） | L76: 广西平南县农文旅投资发展有限公司 | M76: 国家金库平南县支库 | N76: 农行平南县支行 | O76: 204701010400017177
A77: 65 | B77: 平南县 | C77: 平南县城东城西片区棚户区（城中村）改造项目 | E77: 100 | G77: 400 | H77: 4500 | I77: 第二批 | J77: 4,500.00 | K77: 住建部门（或棚改部门） | L77: 平南县伟盛经营管理有限公司 | M77: 国家金库平南县支库 | N77: 农行平南县支行 | O77: 204701010400017177
A78: 66 | B78: 平南县 | C78: 平南县城湖棚户区建设项目 | D78: 473 | H78: 2500 | I78: 第二批 | J78: 2,500.00 | K78: 住建部门（或棚改部门） | L78: 平南县城市建设投资有限公司 | M78: 国家金库平南县支库 | N78: 农行平南县支行 | O78: 204701010400017177
A79: 67 | B79: 平南县 | C79: 平南县老城片区棚户区（城中村）改造项目 | E79: 648 | G79: 652 | H79: 14500 | I79: 第二批 | J79: 14,500.00 | K79: 住建部门（或棚改部门） | L79: 平南县伟盛经营管理有限公司 | M79: 国家金库平南县支库 | N79: 农行平南县支行 | O79: 204701010400017177
A80: 68 | B80: 桂平市 | C80: 桂平市铺岭棚户区改造项目 | E80: 272 | H80: 500 | I80: 第二批 | J80: 500.00 | K80: 住建部门（或棚改部门） | L80: 桂平市建设投资有限责任公司 | M80: 国家金库桂平市支库 | N80: 桂平桂银村镇银行 | O80: 667100065990200020
A81: 69 | B81: 桂平市 | C81: 桂平市郁江西堤园棚户区改造项目 | D81: 744 | H81: 6500 | I81: 第二批 | J81: 6,500.00 | K81: 住建部门（或棚改部门） | L81: 桂平市建设投资有限责任公司 | M81: 国家金库桂平市支库 | N81: 桂平桂银村镇银行 | O81: 667100065990200020
A82: 70 | B82: 桂平市 | C82: 桂平市官冲口瓦窑村棚户区(城中村)改造项目 | E82: 103 | H82: 2000 | I82: 第二批 | J82: 2,000.00 | K82: 住建部门（或棚改部门） | L82: 桂平市住房和城乡建设局 | M82: 国家金库桂平市支库 | N82: 桂平市信用联社营业部 | O82: 9176012060000049
B83: 玉林市小计 | D83: =SUM(D84:D126) -> 8719 | E83: =SUM(E84:E126) -> 6587 | F83: 0 | G83: 3572 | H83: 140275 | J83: =SUM(J84:J126) -> 182400
A84: 71 | B84: 玉林市本级 | C84: 玉林市石棠社区棚户区改造项目 | D84: 760 | H84: 4500 | I84: 第一批 | J84: 4,500.00 | K84: 财政部门 | N84: 建行玉林分行营业部 | O84: 4500 1660 4550 5050 5520
A85: 72 | B85: 玉林市本级 | C85: 玉林市火车站片区棚户区改造项目 | H85: 13600 | I85: 第一批 | J85: 13,600.00 | K85: 其他 | N85: 建行玉林分营 | O85: 45001660455050506486
K86: 其他 | N86: 玉林市区农村信用合作联社城北信用社 | O86: 505112010105543921
K87: 其他 | N87: 建行玉林分行营业部 | O87: 45001660455050508094
K88: 其他 | N88: 建行玉林分行营业部 | O88: 45001660455050508094
K89: 其他 | N89: 中国工商银行股份有限公司玉林市火车站支行 | O89: 2111704129300018809
K90: 其他 | N90: 中国建设银行股份有限公司玉林大府园支行 | O90: 45050166044100000010
K91: 其他 | N91: 建设银行玉林分行营业部 | O91: 45001660455050506536
K92: 其他 | N92: 玉林市区农村信用合作联社玉城信用社 | O92: 504712010103445399
K93: 其他 | N93: 中国光大银行厦门厦大支行 | O93: 37520188000031181
K94: 其他 | N94: 中国建设银行股份有限公司玉林大府园支行 | O94: 45050166044100000010
K95: 其他 | N95: 中国建设银行股份有限公司玉林大府园支行 | O95: 45050166044100000010
K96: 其他 | N96: 中国建设银行股份有限公司玉林分行 | O96: 45001660455050717138
K97: 其他 | N97: 中国银行股份有限公司玉林市火车站支行 | O97: 624975737395
K98: 其他 | N98: 中国建设银行股份有限公司玉林分行 | O98: 45050166045500000531
K99: 其他 | N99: 交通银行股份有限公司玉林分行 | O99: 459899991010003002076
K100: 其他 | N100: 中国银行玉林市人民东路支行 | O100: 617157491003
K101: 其他 | N101: 中国建设银行股份有限公司玉林大府园支行 | O101: 45050166044100000010
K102: 其他 | N102: 建设银行玉林分行营业部 | O102: 45001660455050506536
K103: 其他 | N103: 中国建设银行股份有限公司玉林大府园支行 | O103: 45050166044100000010
K104: 其他 | N104: 广西北部湾银行玉林分行 | O104: 800053886500140
K105: 其他 | N105: 中国银行股份有限公司玉林市火车站支行 | O105: 624975737395
K106: 其他 | N106: 中国建设银行股份有限公司玉林分行 | O106: 45001660455050717138
K107: 其他 | N107: 交通银行股份有限公司玉林分行 | O107: 459899991010003002076
D108: 1612 | K108: 其他 | N108: 中国建设银行股份有限公司玉林分行 | O108: 45001660455050717138
A109: 73 | B109: 玉林市本级 | C109: 玉林市玉柴产业新城棚户区改造项目 | D109: 1809 | H109: 10500 | I109: 第二批 | J109: 10,500.00 | K109: 财政部门 | N109: 建行玉林分行营业部 | O109: 4500 1660 4550 5050 5520
A110: 74 | B110: 玉林市本级 | C110: 玉林龙潭产业园南区棚户区改造项目 | D110: 539 | E110: 132 | H110: 9000 | I110: 第二批 | J110: 9,000.00 | K110: 财政部门 | N110: 建行玉林分行营业部 | O110: 4500 1660 4550 5050 5520
A111: 75 | B111: 玉林市本级 | C111: 玉林市高新技术产业开发区棚户区（城中村）改造项目 | G111: 1650 | H111: 13000 | I111: 第二批 | J111: 13,000.00 | K111: 其他 | N111: 建行玉林分行营业部 | O111: 45001660455050505520
A112: 76 | B112: 玉林市福绵区 | C112: 玉林市福绵区南福新区棚户区改造项目（玉林市福绵区棚户区改造项目） | E112: 1000 | G112: 1000 | H112: 20000 | I112: 第二批 | J112: 20,000.00 | K112: 财政部门 | N112: 玉林市区农村信用合作联社福绵信用社 | O112: 509512010100971000
A113: 77 | B113: 玉州区 | C113: 玉林市清宁路棚户区改造项目 | D113: 720 | H113: 15459 | I113: 第一批 | J113: 20,000.00 | K113: 平台公司 | N113: 招行银行股份有限公司南宁分行营业部 | O113: 7719 0175 7110 106
A114: 78 | B114: 玉林市玉州区 | C114: 玉林市玉州区南江街道羊义岭片区棚户区改造项目 | G114: 232 | H114: 256 | I114: 第二批 | J114: 25,000.00 | K114: 其他 | N114: 兴业银行南宁东盟商务区支行 | O114: 552060100100320339
A115: 79 | B115: 玉林市玉东新区 | C115: 玉林市玉东新区下久岭城市棚户区改造项目 | D115: 770 | H115: 1500 | I115: 第一批 | J115: 1,500.00 | K115: 平台公司 | N115: 工行 | O115: 2111701029219503810
A116: 80 | B116: 玉林市玉东新区 | C116: 玉林市玉东新区陂石棚户区改造项目 | E116: 450 | H116: 2000 | I116: 第二批 | J116: 2,000.00 | K116: 住建部门（或棚改部门） | N116: 工行 | O116: 2111701029219503810
A117: 81 | B117: 玉林市玉东新区 | C117: 玉林市玉东新区大芦城市棚户区改造项目 | D117: 26 | E117: 274 | H117: 8000 | I117: 第二批 | J117: 8,000.00 | K117: 平台公司 | N117: 工行 | O117: 2111701029219503810
A118: 82 | B118: 玉林市玉东新区 | C118: 玉林市玉东新区和睦南、和睦西棚户区改造项目 | D118: 148 | H118: 1300 | I118: 第二批 | J118: 1,300.00 | K118: 财政部门 | N118: 工行 | O118: 2111701029219503810
A119: 83 | B119: 玉林市玉东新区 | C119: 玉林市玉东新区高新区榕楼城中村改造项目 | G119: 450 | H119: 2000 | I119: 第二批 | J119: 2,000.00 | K119: 财政部门 | N119: 工行 | O119: 2111701029219503810
A120: 84 | B120: 玉林市玉东新区 | C120: 玉林市玉东新区旺瑶村改造项目 | D120: 995 | H120: 6200 | I120: 第二批 | J120: 6,200.00 | K120: 平台公司 | N120: 工行 | O120: 2111701029219503810
A121: 85 | B121: 北流市 | C121: 北流市城北片区棚户区（危旧房、城中村）改造项目 | E121: 1867 | H121: 7160 | I121: 第二批 | J121: 20,000.00 | K121: 财政部门 | N121: 中国农业发展银行北流市支行 | O121: 20345098100100000316351 | R121: 其他
A122: 86 | B122: 容县 | C122: 2018年-2020年容县棚户区改造项目 | E122: 480 | G122: 240 | H122: 10000 | I122: 第一批 | J122: 10,000.00 | K122: 财政部门 | N122: 容县城区信用社 | O122: 5343012040001806
A123: 87 | B123: 陆川县 | C123: 陆川县2018-2020年棚户区改造项目 | H123: 8000 | I123: 第一批 | J123: 8,000.00 | K123: 平台公司 | N123: 广西陆川县农村商业银行 | O123: 552512010110759186
D124: 616 | E124: 2384 | N124: 广西陆川柳银村镇银行 | O124: 85302500000000000679
A125: 88 | B125: 陆川县 | C125: 陆川县城区九洲江县城区段一江两岸危旧房改造综合整治项目 | D125: 532 | H125: 5000 | I125: 第一批 | J125: 5,000.00 | K125: 平台公司 | N125: 广西陆川柳银村镇银行 | O125: 85302500000000000679
A126: 89 | B126: 陆川县 | C126: 陆川县城区陆兴路片区危旧房改造项目 | D126: 192 | H126: 2800 | I126: 第一批 | J126: 2,800.00 | K126: 平台公司 | N126: 广西陆川县农村商业银行 | O126: 552512010110759186
B127: 百色市小计 | D127: =SUM(D129:D149) -> 1419 | E127: =SUM(E129:E149) -> 25099 | F127: 0 | G127: 392 | H127: =SUM(H128:H149) -> 319300 | J127: =SUM(J128:J149) -> 319,300.00
A128: 90 | B128: 百色市本级 | C128: 百色市拉域片区棚户区改造项目 | E128: 738 | H128: 28200 | I128: 第一批 | J128: 28,200.00 | K128: 平台公司 | L128: 广西百色开发投资集团 | M128: 广西百色开发投资集团 | N128: 百色右江农村合作银行营业部 | O128: 600612010103172000
A129: 91 | B129: 百色市本级 | C129: 百色市中山（百胜）社区棚户区改造项目 | E129: 3149 | H129: 51000 | I129: 第二批 | J129: 51,000.00 | K129: 财政部门 | L129: 广西百色红城投资有限公司 | M129: 广西百色红城投资有限公司 | N129: 国家金库百色市中心支库 | O129: 201000000003271001
A130: 92 | B130: 百色市本级 | C130: 百色市建新片区棚户区改造项目 | E130: 1986 | H130: 35000 | I130: 第二批 | J130: 35,000.00 | K130: 平台公司 | L130: 广西百色红城投资有限公司 | M130: 广西百色红城投资有限公司 | N130: 中国农业银行股份有限公司百色右江支行 | O130: 20607001040017900
A131: 93 | B131: 百色市本级 | C131: 百色市百东新区棚户区（城中村）改造项目 | E131: 2488 | H131: 15000 | I131: 第二批 | J131: 15,000.00 | K131: 平台公司 | L131: 广西百色百东投资有限公司 | M131: 广西百色百东投资有限公司 | N131: 农行百色分行营业室 | O131: 20605101040010800
A132: 94 | B132: 百色市本级 | C132: 百色市泵当冻忍一期、石龙一期片区棚户区改造项目 | E132: 735 | H132: 6000 | I132: 第二批 | J132: 6,000.00 | K132: 财政部门 | L132: 广西百色红城投资有限公司 | M132: 广西百色红城投资有限公司 | N132: 国家金库百色市中心支库 | O132: 201000000003271001
A133: 95 | B133: 百色市本级 | C133: 百色市莲塘二期棚户区改造项目 | E133: 630 | H133: 5000 | I133: 第二批 | J133: 5,000.00 | K133: 平台公司 | L133: 广西百色红城投资有限公司 | M133: 广西百色红城投资有限公司 | N133: 国家金库百色市中心支库 | O133: 201000000003271001
A134: 96 | B134: 百色市右江区 | C134: 百色市右江区那马片区棚户区改造项目 | E134: 1068 | H134: 20000 | I134: 第一批 | J134: 20,000.00 | K134: 平台公司 | L134: 广西景益置业有限公司 | M134: 广西景益置业有限公司 | N134: 中国农业银行股份有限公司百色中山支行 | O134: 20605301040007200
A135: 97 | B135: 百色市右江区 | C135: 百色市右江区那毕城中村改造一期项目 | E135: 1592 | H135: 20000 | I135: 第一批 | J135: 20,000.00 | K135: 平台公司 | L135: 广西景益置业有限公司 | M135: 广西景益置业有限公司 | N135: 中国光大银行南宁建政支行 | O135: 78870188000150600
A136: 98 | B136: 百色市右江区 | C136: 百色市右江区城西片区棚户区改造项目 | E136: 1410 | H136: 8000 | I136: 第二批 | J136: 8,000.00 | K136: 财政部门 | L136: 广西景益置业有限公司 | M136: 广西景益置业有限公司 | N136: 中国银行百色分行 | O136: 617157502797
A137: 99 | B137: 田阳县 | C137: 田阳县田州镇棚户区（城中村）改造项目（一期） | E137: 1323 | H137: 20000 | I137: 第二批 | J137: 20,000.00 | K137: 平台公司 | L137: 田阳县恒壮农业有限公司 | M137: 田阳县恒壮农业有限公司 | N137: 中国农业发展银行田阳县支行 | O137: 20345262200100000252351
A138: 100 | B138: 田东县 | C138: 田东县江城镇城中村改造项目 | E138: 200 | H138: 2900 | I138: 第一批 | J138: 2,900.00 | K138: 平台公司 | L138: 广西田东工业投资开发有限公司 | M138: 广西田东工业投资开发有限公司 | N138: 田东农村商业银行平马支行 | O138: 612812010101985206
A139: 101 | B139: 田东县 | C139: 田东县祥周镇危房（城中村）改造项目 | D139: 255 | H139: 5500 | I139: 第一批 | J139: 5,500.00 | K139: 平台公司 | L139: 广西田东工业投资开发有限公司 | M139: 广西田东工业投资开发有限公司 | N139: 田东农村商业银行平马支行 | O139: 612812010101985206
A140: 102 | B140: 田东县 | C140: 田东县印茶镇城中村改造项目 | D140: 98 | H140: 1800 | I140: 第二批 | J140: 1,800.00 | K140: 财政部门 | L140: 广西田东工业投资开发有限公司 | M140: 广西田东工业投资开发有限公司 | N140: 田东农村商业银行平马支行 | O140: 612812010101985206
A141: 103 | B141: 平果县 | C141: 平果县城北片区棚户区改造安置项目 | E141: 4776 | H141: 30000 | I141: 第二批 | J141: 30,000.00 | K141: 财政部门 | L141: 广西平果开发投资集团有限公司 | M141: 广西平果开发投资集团有限公司 | N141: 国家金库平果县支库 | O141: 201013000004271000
A142: 104 | B142: 德保县 | C142: 德保县城关镇汉龙片区城中村棚户区改造项目 | E142: 406 | H142: 3000 | I142: 第二批 | J142: 3,000.00 | K142: 财政部门 | L142: 德保县城镇建设发展有限责任公司 | M142: 德保县住建局 | N142: 中国农业银行德保支行 | O142: 20635101040012527
A143: 105 | B143: 那坡县 | C143: 那坡县2018-2020年棚户区改造项目（一期） | E143: 569 | G143: 392 | H143: 4900 | I143: 第二批 | J143: 4,900.00 | K143: 平台公司 | L143: 那坡县边贸贸易总公司 | M143: 那坡县边贸贸易总公司 | N143: 中国农业银行那坡县支行 | O143: 20633101040001506
A144: 106 | B144: 凌云县 | C144: 凌云县东、西片区危旧房拆除新建项目和城中村改造建设项目 | D144: 642 | E144: 266 | H144: 21000 | I144: 第一批 | J144: 11,000.00 | K144: 平台公司 | L144: 凌云县振凌资产投资经营有限责任公司 | M144: 凌云县财政局 | N144: 广西凌云农村商业银行股份有限公司 | O144: 641612010118224028
A145: 107 | B145: 凌云县 | C145: 凌云县东、西片区危旧房拆除新建项目和城中村改造建设项目 | I145: 第二批 | J145: 10,000.00 | K145: 住建部门（或棚改部门） | L145: 凌云县振凌资产投资经营有限责任公司 | M145: 凌云县财政局 | N145: 广西凌云农村商业银行股份有限公司 | O145: 641612010101275721
A146: 108 | B146: 田林县 | C146: 田林县政府大院棚户区改造（一、二期）项目 | D146: 324 | E146: 0 | H146: 6000 | I146: 第二批 | J146: 6,000.00 | K146: 财政部门 | L146: 田林县恒昌公司 | M146: 田林县财政局 | N146: 中国工商银行股份有限公司田林县支行 | O146: 2110604829219001015
A147: 109 | B147: 田林县 | C147: 田林县县直单位危旧房改造 (一、二期)项目 | D147: 100 | E147: 60 | H147: 1800 | I147: 第二批 | J147: 1,800.00 | K147: 财政部门 | L147: 田林县恒昌公司 | M147: 田林县财政局 | N147: 中国工商银行股份有限公司田林县支行 | O147: 2110604829219001015
A148: 110 | B148: 隆林县 | C148: 隆林各族自治县2018年棚户区改造项目（一期） | E148: 1133 | H148: 4200 | I148: 第二批 | J148: 4,200.00 | K148: 财政部门 | L148: 隆林华隆开发投资集团 | M148: 广西景逸投资有限公司 | N148: 农发行隆林县支行 | O148: 20345263100100000148751
A149: 111 | B149: 靖西市 | C149: 靖西市新靖镇棚户区（城中村）改造项目（一期） | E149: 3308 | H149: 30000 | I149: 第二批 | J149: 30,000.00 | K149: 财政部门 | L149: 广西靖西市新发展集团有限公司 | M149: 广西靖西市新发展集团有限公司 | N149: 农发行靖西支行 | O149: 20345262600100000246261
B150: 贺州市小计 | D150: =SUM(D151:D167) -> 5776 | E150: =SUM(E151:E167) -> 9646 | F150: 3642 | G150: 7334 | H150: 178600 | J150: =SUM(J151:J167) -> 178,600.00
A151: 112 | B151: 贺州市本级 | C151: 贺州市姑婆山小镇路花新村项目 | D151: 0 | E151: 308 | F151: 92 | G151: 0 | H151: 10000 | I151: 第二批 | J151: 10,000.00 | K151: 平台公司 | L151: 广西贺州市正赢实业投资开发有限公司 | M151: 市财政局国库支付中心 | N151: 广西贺州桂东农村合作银行汇豪支行 | O151: 4278 1201 0107 0600 57
A152: 113 | B152: 贺州市本级 | C152: 粤桂县域经济产业合作示范区（城中村）棚户区改造项目（信都、铺门片区，信都、仁义片区） | D152: 1280 | E152: 497 | F152: 149 | G152: 0 | H152: 36100 | I152: 第二批 | J152: 36,100.00 | K152: 其他 | L152: 广西贺州市正业发展有限公司 | M152: 市财政局国库支付中心 | N152: 中国农业发展银行贺州市分行 | O152: 2034 5240 2001 00000 204781
A153: 114 | B153: 贺州市本级 | C153: 贺州市平桂区黄田镇农贸园棚户区（城中村）改造及配套基础设施项目 | D153: 0 | E153: 413 | F153: 123 | G153: 924 | H153: 12750 | I153: 第二批 | J153: 12,750.00 | K153: 其他 | L153: 广西贺州市农业投资集团有限公司 | M153: 市财政局国库支付中心 | N153: 中国银行股份有限公司贺州分行 | O153: 623670306826
A154: 115 | B154: 贺州市本级 | C154: 贺州市出水塘棚户区改造项目鸭子寨棚户区改造项目 | D154: 188 | E154: 2483 | F154: 1502 | G154: 0 | H154: 10000 | I154: 第二批 | J154: 10,000.00 | K154: 平台公司 | L154: 广西贺州市正赢实业投资开发有限公司 | M154: 市财政局国库支付中心 | N154: 广西贺州桂东农村合作银行汇豪支行 | O154: 4278 1201 0107 0600 57
A155: 116 | B155: 贺州市本级 | C155: 贺州市平安居棚户区改造项目 | D155: 0 | E155: 744 | F155: 222 | G155: 0 | H155: 5000 | I155: 第二批 | J155: 5,000.00 | K155: 平台公司 | L155: 广西贺州市正赢实业投资开发有限公司 | M155: 市财政局国库支付中心 | N155: 广西贺州桂东农村合作银行汇豪支行 | O155: 4278 1201 0107 0600 57
A156: 117 | B156: 贺州市本级 | C156: 八步区贺街镇香花村（城中村）棚户区改造项目 | D156: 72 | E156: 26 | F156: 8 | G156: 45 | H156: 1600 | I156: 第二批 | J156: 1,600.00 | K156: 平台公司 | L156: 贺州市贺沣农业投资有限公司 | M156: 八步区财政局国库支付中心 | N156: 中国农业发展银行贺州市分行 | O156: 20345240200100000383771
A157: 118 | B157: 贺州市本级 | C157: 八步区贺街镇农场村（城中村）棚户区改造项目 | D157: 150 | E157: 0 | F157: 0 | G157: 0 | H157: 2500 | I157: 第二批 | J157: 2,500.00 | K157: 平台公司 | L157: 贺州市城源房地产置业有限公司 | M157: 八步区财政局国库支付中心 | N157: 中国农业发展银行贺州市分行 | O157: 20345240200100000430091
A158: 119 | B158: 贺州市本级 | C158: 八步区莲塘镇马尾河片区（城中村）棚户区改造项目 | D158: 0 | E158: 115 | F158: 35 | G158: 350 | H158: 1500 | I158: 第二批 | J158: 1,500.00 | K158: 平台公司 | L158: 贺州现代产业园发展有限公司 | M158: 八步区财政局国库支付中心 | N158: 招商银行南宁分行营业部 | O158: 7719 0180 9310 206
A159: 120 | B159: 贺州市本级 | C159: 八步区城东街道片区棚户区改造项目（一期） | D159: 0 | E159: 385 | F159: 115 | G159: 1200 | H159: 7000 | I159: 第二批 | J159: 7,000.00 | K159: 平台公司 | L159: 贺州市贺沣农业投资有限公司 | M159: 八步区财政局国库支付中心 | N159: 广西贺州桂东农村合作银行营业部 | O159: 427612010173370208
A160: 121 | B160: 贺州市本级 | C160: 八步区贺街镇河西片棚户区改造（城中村）项目 | D160: 300 | E160: 55 | F160: 16 | G160: 159 | H160: 6000 | I160: 第二批 | J160: 6,000.00 | K160: 平台公司 | L160: 贺州市贺沣农业投资有限公司 | M160: 八步区财政局国库支付中心 | N160: 中国农业发展银行贺州市分行 | O160: 20345240200100000383771
A161: 122 | B161: 贺州市本级 | C161: 八步区莲塘镇黄母塘（城中村）棚户区改造项目 | D161: 0 | E161: 139 | F161: 41 | G161: 0 | H161: 4950 | I161: 第二批 | J161: 4,950.00 | K161: 平台公司 | L161: 贺州现代产业园发展有限公司 | M161: 八步区财政局国库支付中心 | N161: 招商银行南宁分行营业部 | O161: 7719 0180 9310 206
A162: 123 | B162: 贺州市本级 | C162: 八步区江南街道片区棚户区改造项目（一期） | D162: 0 | E162: 847 | F162: 253 | G162: 2900 | H162: 28000 | I162: 第二批 | J162: 28,000.00 | K162: 平台公司 | L162: 贺州市贺沣农业投资有限公司 | M162: 八步区财政局国库支付中心 | N162: 广西贺州桂东农村合作银行营业部 | O162: 427612010173370208
A163: 124 | B163: 贺州市本级 | C163: 平桂区城市棚户区城中村改造项目（大平、西湾、公会片区，沙田、鹅塘、黄田片区，羊头、水口片区） | D163: 1330 | E163: 1055 | F163: 315 | G163: 1006 | H163: 10000 | I163: 第二批 | J163: 10,000.00 | K163: 其他 | L163: 贺州市平桂城市建设投资有限公司 | M163: 平桂区财政局国库支付中心 | N163: 中行贺州市平桂支行 | O163: 611970627850
A164: 125 | B164: 贺州市本级 | C164: 贺州市八步区光明化氮肥厂棚户区改造项目 | D164: 1014 | E164: 0 | F164: 0 | G164: 0 | H164: 8000 | I164: 第二批 | J164: 8,000.00 | K164: 平台公司 | L164: 广西贺州市八步区城市投资有限公司 | M164: 八步区财政局国库支付中心 | N164: 广西贺州桂东农村合作银行营业部 中国农业发展银行贺州市分行 | O164: 427612010108232000 20345240200100000108911
A165: 126 | B165: 昭平县 | C165: 黄姚古镇旅游文化产业区管委会棚户区改造项目 | D165: 0 | E165: 346 | F165: 104 | G165: 750 | H165: 7200 | I165: 第二批 | J165: 7,200.00 | K165: 其他 | L165: 广西黄姚恒达投资发展有限公司 | M165: 昭平县财政局国库支付中心 | N165: 中国农业发展银行钟山县支行 | O165: 20345042300100000211541
A166: 127 | B166: 钟山县 | C166: 钟山县2016年城区棚户区改造项目 | D166: 1442 | H166: 18000 | I166: 第一批 | J166: 18,000.00 | K166: 平台公司 | L166: 钟山盛泽发展集团有限公司 | M166: 钟山县财政局国库支付中心 | N166: 招商银行股份有限公司南宁分行营业部 | O166: 7719 0175 6410 688
A167: 128 | B167: 钟山县 | C167: 钟山县高铁站片区棚户区改造项目 | D167: 0 | E167: 2233 | F167: 667 | G167: 0 | H167: 10000 | I167: 第二批 | J167: 10,000.00 | K167: 平台公司 | L167: 钟山盛泽发展集团有限公司 | M167: 钟山县财政局国库支付中心 | N167: 中国农业发展银行钟山支行 | O167: 2034 5042 3001 0000 0148 111
B168: 河池市小计 | D168: =SUM(D169:D178) -> 7828 | E168: =SUM(E169:E178) -> 1527 | F168: =SUM(F169:F178) -> 0 | G168: =SUM(G169:G178) -> 915 | H168: =SUM(H169:H178) -> 53294 | J168: =SUM(J169:J178) -> 81,700.00
A169: 129 | B169: 河池市本级 | C169: 河池市人民厂片区棚户区改造项目老地委安置点一期工程 | D169: 345 | H169: 3163 | I169: 第二批 | J169: 6,000.00 | K169: 平台公司 | L169: 河池市城市投资建设发展有限公司 | M169: 河池市城市投资建设发展有限公司 | N169: 交通银行广西区分行营业部 | O169: 451899991010003107265-0001
A170: 130 | B170: 河池市本级 | C170: 河池市老虎山片区棚户区改造项目 | D170: 2370 | E170: 552 | H170: 3341 | I170: 第二批 | J170: 10,000.00 | K170: 平台公司 | L170: 河池市城市投资建设发展有限公司 | M170: 河池市城市投资建设发展有限公司 | N170: 交通银行广西区分行营业部 | O170: 451899991010003107265-0002
A171: 131 | B171: 金城江区 | C171: 银泰·王府城市花园 | D171: 72 | H171: 401 | I171: 第二批 | J171: 4,200.00 | K171: 财政部门 | L171: 河池市金城江区城乡建设投资有限公司 | M171: 河池市金城江区城乡建设投资有限公司 | N171: 交通银行广西分行 | O171: 451899991010003105794
A172: 132 | B172: 金城江区 | C172: 河池市人民厂片区棚户区改造项目-剧场安置点（银泰·王座）异地安置工程 | D172: 55 | H172: 2247 | I172: 第二批 | J172: 6,000.00 | K172: 财政部门 | L172: 河池市金城江区城乡建设投资有限公司 | M172: 河池市金城江区城乡建设投资有限公司 | N172: 交通银行广西分行 | O172: 451899991010003105794
A173: 133 | B173: 金城江区 | C173: 银泰·嘉园小区 | D173: 370 | H173: 2420 | I173: 第二批 | J173: 6,000.00 | K173: 财政部门 | L173: 河池市金城江区城乡建设投资有限公司 | M173: 河池市金城江区城乡建设投资有限公司 | N173: 交通银行广西分行 | O173: 451899991010003105794
A174: 134 | B174: 巴马县 | C174: 巴马瑶族自治县棚户区改造项目 | D174: 627 | E174: 624 | G174: 688 | H174: 12000 | I174: 第二批 | J174: 12,000.00 | K174: 平台公司 | L174: 巴马城市建设投资开发有限公司 | M174: 中国农业发展银行巴马瑶族自治县支行 | N174: 中国农业发展银行巴马瑶族自治县支行 | O174: 20345272900100000080571
A175: 135 | B175: 东兰县 | C175: 东兰县2017年城市棚户区改造项目 | D175: 766 | H175: 20000 | I175: 第一批 | J175: 20,000.00 | K175: 平台公司 | N175: 交通银行广西区分行营业部 | O175: 451899991010003055929
A176: 136 | B176: 罗城仫佬族自治县 | C176: 罗城仫佬族自治县城西福安小区城市棚户区改造项目 | D176: 248 | H176: 1500 | I176: 第一批 | J176: 1,500.00 | K176: 平台公司 | N176: 罗城农村信用合作社联社营业部 | O176: 713612010115726911
A177: 137 | B177: 凤山县 | C177: 凤山县县城棚户区及风貌改造项目（一期） | D177: 2000 | E177: 351 | G177: 227 | H177: 8000 | I177: 第一批 | J177: 8,000.00 | K177: 平台公司 | L177: 凤山县城乡建设投资发展有限责任公司 | M177: 凤山县城乡建设投资发展有限责任公司 | N177: 交通银行广西区分行 | O177: 451899991010003056903
A178: 138 | B178: 都安县 | C178: 都安县2018年棚户区（城中村还建、自建部分）改造项目 | D178: 975 | H178: 223 | I178: 第二批 | J178: 8,000.00 | K178: 平台公司 | L178: 都安瑶族自治县国有资产投资经营有限公司 | M178: 都安瑶族自治县国有资产投资经营有限公司 | N178: 交通银行 | O178: 451899991010003108889
B179: 来宾市小计 | D179: =SUM(D181:D190) -> 4805 | E179: =SUM(E181:E190) -> 4598 | F179: =SUM(F181:F190) -> 0 | G179: =SUM(G181:G190) -> 0 | H179: =SUM(H180:H190) -> 66216 | J179: =SUM(J180:J190) -> 85,900.00
A180: 139 | B180: 来宾市本级 | C180: 来宾市滨河北片区棚户区改造项目（一期） | H180: 4123 | I180: 第一批 | J180: 10,000.00 | K180: 平台公司 | L180: 广西来宾桂中农村合作银行维林支行 | M180: 216712010100192811 | N180: 广西来宾桂中农村合作银行维林支行 | O180: 216712010100192811
A181: 140 | B181: 来宾市本级 | C181: 来宾市滨河北片区棚户区改造项目（一期） | D181: 1000 | H181: 1887 | I181: 第二批 | J181: 5,000.00 | K181: 财政部门
A182: 141 | B182: 来宾市本级 | C182: 来宾市来华投资区"三产"安置小区工程 | E182: 1233 | H182: 1792 | I182: 第二批 | J182: 6,000.00 | K182: 财政部门 | L182: 建行来宾城北支行 | M182: 4500 1627 9580 5250 2197
A183: 142 | B183: 来宾市本级 | C183: 来宾市古三"三产"安置小区工程 | E183: 880 | H183: 1174 | I183: 第二批 | J183: 7,000.00 | K183: 财政部门 | L183: 建行来宾城北支行 | M183: 4500 1627 9580 5250 2197
A184: 143 | B184: 来宾市本级 | C184: 来宾市西三"三产"安置小区一期工程 | E184: 219 | H184: 239 | I184: 第二批 | J184: 900.00 | K184: 财政部门 | L184: 建行来宾城北支行 | M184: 4500 1627 9580 5250 2197
A185: 144 | B185: 象州县 | C185: 象州县朝阳路片区、城北片二区棚户区改造项目（一） | D185: 789 | H185: 13000 | I185: 第二批 | J185: 13,000.00 | K185: 平台公司 | L185: 来宾象州长江村镇银行营业部 | M185: 210240323910016 | N185: 来宾象州长江村镇银行营业部 | O185: 210240323910016
A186: 145 | B186: 象州县 | C186: 象州县城北片一区、象江路片区城中村棚户区改造项目（一期） | D186: 448 | E186: 496 | H186: 12000 | I186: 第二批 | J186: 12,000.00 | K186: 平台公司 | L186: 来宾象州长江村镇银行营业部 | M186: 210240323910016 | N186: 来宾象州长江村镇银行营业部 | O186: 210240323910016
A187: 146 | B187: 武宣县 | C187: 来宾市武宣县城中村改造（湖畔华庭A区）项目 | D187: 1319 | H187: 15000 | I187: 第一批 | J187: 15,000.00 | K187: 平台公司 | L187: 中国农业发展银行武宣县支行 | M187: 20345132300100000154941 | N187: 中国农业发展银行武宣县支行 | O187: 20345132300100000154941
A188: 147 | B188: 武宣县 | C188: 广西壮族自治区2013-2017年棚户区改造项目（二期）来宾市武宣县城东新区（城中村）片区改造项目 | D188: 530 | H188: 2000 | I188: 第一批 | J188: 2,000.00 | K188: 平台公司 | L188: 农行武宣县支行 | M188: 20145101040008809 | N188: 农行武宣县支行 | O188: 20145101040008809
A189: 148 | B189: 武宣县 | C189: 武宣县2018年棚户区改造建设项目 | D189: 719 | E189: 594 | H189: 6000 | I189: 第二批 | J189: 6,000.00 | K189: 财政部门 | N189: 农行武宣城北支行 | O189: 20145301040004093
A190: 149 | B190: 武宣县 | C190: 武宣县城中村改造（湖畔华庭B区） | E190: 1176 | H190: 9000 | I190: 第二批 | J190: 9,000.00 | K190: 财政部门 | N190: 武宣县财政局零余额专户 | O190: 211612010100115917
B191: 崇左市小计 | D191: =SUM(D192:D206) -> 6522 | E191: =SUM(E192:E206) -> 10051 | F191: 2346 | G191: 80 | H191: 251400 | J191: =SUM(J192:J206) -> 251400
A192: 150 | B192: 崇左市本级 | C192: 崇左市城区棚户区改造项目旧城棚户区安置点工程（B工程） | E192: 1798 | H192: 2000 | I192: 第一批 | J192: 2,000.00 | K192: 施工单位 | L192: 崇左市城市资产经营投资发展有限公司 | M192: 崇左市财政局国库 | N192: 工行崇左友谊支行 | O192: 2112 1231 1910 0048 711
A193: 151 | B193: 崇左市本级 | C193: 崇左市城区棚户区改造项目城南安置小区一期 | E193: 1682 | H193: 3500 | I193: 第一批 | J193: 3,500.00 | K193: 施工单位 | L193: 崇左市城市资产经营投资发展有限公司 | M193: 崇左市财政局国库 | N193: 工行崇左友谊支行 | O193: 2112 1231 1910 0048 711
A194: 152 | B194: 崇左市本级 | C194: 中泰崇左产业园棚户区改造项目A区 | D194: 829 | H194: 34300 | I194: 第一批 | J194: 34,300.00 | K194: 平台公司 | L194: 广西中泰象郡建设投资有限公司 | M194: 崇左市财政局国库 | N194: 光大银行南宁建政支行 | O194: 78870188000150947
A195: 153 | B195: 崇左市本级 | C195: 中泰崇左产业园棚户区改造项目B区 | E195: 360 | H195: 18000 | I195: 第二批 | J195: 18,000.00 | K195: 财政部门 | L195: 广西中泰象郡建设投资有限公司 | M195: 崇左市财政局国库 | N195: 1、中国工商银行崇左友谊支行 2、中国银行股份有限公司崇左支行 | O195: 1、2112123119100061810 2、615874711051
A196: 154 | B196: 崇左市本级 | C196: 中泰崇左产业园棚户区改造项目C区 | E196: 911 | H196: 32000 | I196: 第二批 | J196: 32,000.00 | K196: 财政部门 | L196: 广西中泰象郡建设投资有限公司 | M196: 崇左市财政局国库 | N196: 光大银行南宁长湖支行 | O196: 79080188000054949
A197: 155 | B197: 崇左市本级 | C197: 崇左市城区棚户区改造项目城南安置小区二期 | F197: 926 | H197: 28000 | I197: 第二批 | J197: 28,000.00 | K197: 平台公司 | L197: 崇左市城市资产经营投资发展有限公司 | M197: 崇左市财政局国库 | N197: 工行崇左友谊支行 | O197: 2112 1231 1910 0044 278
A198: 156 | B198: 扶绥县 | C198: 扶绥县城市棚户区改造项目（五期） | D198: 1921 | H198: 12000 | I198: 第二批 | J198: 12,000.00 | K198: 财政部门 | L198: 广西空港投资开发有限责任公司 | M198: 扶绥县财政局国库 | N198: 1、扶绥农商行松江分理处 2、建行扶绥支行 | O198: 1.1379 1201 0107 9058 05 2.4500 1598 2510 5070 2781
A199: 157 | B199: 扶绥县 | C199: 扶绥县城市棚户区改造项目六期（城南片区） | D199: 3100 | H199: 18000 | I199: 第二批 | J199: 18,000.00 | K199: 财政部门 | L199: 广西扶绥县城市开发投资有限公司 | M199: 扶绥县财政局国库 | N199: 1、广西北部湾银行股份有限公司崇左支行 2、扶绥县农村商业银行营业部 | O199: 1、8001 2496 0300 010 2、1376 0120 4000 0828
A200: 158 | B200: 宁明县 | C200: 宁明县2018-2020年棚户区改造安置一区项目 | H200: 25000 | I200: 第一批 | J200: 25,000.00 | K200: 平台公司 | L200: 宁明惠宁建设投资有限责任公司 | M200: 宁明县财政局国库 | N200: 交通银行广西区分行营业部 建设银行宁明分行 农村商业银行宁明分行 | O200: 451060200018170987796 45050110391200000002 147712010106470276
... 6 more rows
